[Event "56th Rubinstein Memorial D 2020"]
[Site "Polanica Zdroj"]
[Date "2020.08.20"]
[Round "6.6"]
[White "Pyka, Roman"]
[Black "Bienkowski, Zbigniew"]
[Result "1-0"]
[ECO "A82"]
[WhiteElo "1873"]
[BlackElo "1739"]
[Annotator "NA RC"]
[PlyCount "47"]
[EventDate "2020.08.15"]
[EventType "swiss"]
[EventCountry "POL"]
[SourceTitle "playchess.com"]
[Source "ChessBase"]
[SourceQuality "1"]
[TimeControl "40/5400+30:1800+30"]

{[%evp 12,47,64,80,114,100,110,89,96,95,121,79,72,65,148,124,129,129,210,204,202,47,280,263,262,287,451,437,444,449,32767,649,613,32767,601,666,835,560]} 1. d4 {[%emt 0:00:00]} f5 {[%emt 0:00:00]} 2. e4 {[%emt 0:00:00]} d6 {[%emt 0:00:31]} 3. exf5 {[%emt 0:00:09]} Bxf5 {[%emt 0:00:29]} 4. Bd3 {[%emt 0:00:07]} Qd7 {[%emt 0:00:35]} 5. Nf3 {[%emt 0:01:57]} Nc6 {[%emt 0:01:32]} 6. O-O {[%emt 0:00:14] A82: Dutch Defence: Staunton Gambit.} Nf6 {[%emt 0:04:42]} 7. Re1 {[%emt 0:01:21]} Bg4 {[%emt 0:01:20]} ({Black should play} 7... Bxd3 $14 8. Qxd3 O-O-O) 8. c3 {[%emt 0:00:22]} O-O-O {[%emt 0:03:34] [#]} 9. h3 $146 {[%emt 0:01:51]} ({Predecessor:} 9. b4 e5 10. b5 e4 11. Bxe4 Ne7 12. Nbd2 g6 13. Qa4 Kb8 14. c4 Bg7 15. Bb2 {½-½ (24) Tonteri,A (1990)-Murgia,S (1718) Rhodes 2011}) 9... Bh5 {[%emt 0:04:55]} 10. Qc2 {[%emt 0:01:48]} g6 {[%emt 0:02:17]} 11. Nh2 {[%emt 0:04:14]} e5 {[%emt 0:28:53]} 12. g4 {[%emt 0:04:13]} Nxg4 {[%emt 0:06:14]} ({Black should try} 12... Bxg4 $14 13. Bg5 (13. Nxg4 Nxg4 14. hxg4 Qxg4+ {[%mdl 64] Double Attack} 15. Kh2 Qh4+ 16. Kg2 Qg4+ 17. Kh2 Qh4+ 18. Kg2 Qg4+ 19. Kh2 $11) 13... Bxh3) 13. hxg4 {[%emt 0:00:13]} Bxg4 {[%emt 0:00:05]} 14. Bb5 {[%emt 0:03:41]} Bf5 {[%emt 0:08:39]} (14... Be6 $16 15. Qa4 Kb8 16. dxe5 dxe5) 15. Qa4 {[%emt 0:00:22]} exd4 {[%emt 0:00:45]} 16. Bxc6 {[%emt 0:01:03]} ({White should play} 16. cxd4 $18 Re8 17. Rxe8+ Qxe8 18. Be3) 16... bxc6 $2 {[%emt 0:07:25]} (16... Qxc6 $14 17. Qxc6 (17. Qxd4 Bh3 $14) 17... bxc6) 17. Qxa7 {[%emt 0:04:41]} Qf7 {[%emt 0:00:45]} 18. Bg5 {[%emt 0:00:44]} Kd7 $2 {[%emt 0:01:39]} (18... Re8 19. Rxe8+ Qxe8) 19. Bxd8 {[%emt 0:00:57]} Kxd8 {[%emt 0:00:03]} 20. cxd4 {[%emt 0:01:55]} Qf6 {[%emt 0:04:45]} 21. Qa8+ {[%emt 0:01:09]} Bc8 {[%emt 0:00:07]} 22. Qxc6 {[%emt 0:01:09]} Bh6 {[%emt 0:01:51]} 23. Nc3 {[%emt 0:01:42]} Bf4 {[%emt 0:02:20] [#]} 24. Qxc7+ $18 {[%emt 0:00:25]} 1-0

[Event "56th Rubinstein Memorial D 2020"]
[Site "Polanica Zdroj"]
[Date "2020.08.20"]
[Round "6.7"]
[White "Szmidt, Przemyslaw"]
[Black "Grzelak, Piotr"]
[Result "1/2-1/2"]
[ECO "C05"]
[WhiteElo "1831"]
[BlackElo "1664"]
[Annotator "NA RC"]
[PlyCount "114"]
[EventDate "2020.08.15"]
[EventType "swiss"]
[EventCountry "POL"]
[SourceTitle "playchess.com"]
[Source "ChessBase"]
[SourceQuality "1"]
[TimeControl "40/5400+30:1800+30"]

{[%evp 8,112,32,-66,14,0,16,0,14,24,44,22,39,27,45,18,62,34,32767,90,95,92,95,102,104,39,70,73,159,173,250,274,236,251,272,200,209,164,189,161,233,157,160,94,108,101,127,72,100,85,101,66,77,24,28,32767,192,138,189,117,123,32767,32767,32767,102,91,32767,102,88,32767,32767,102,32767,120,165,32767,12,16,10,13,32767,16,10,16,14,4,32767,8,15,8,15,8,32767,0,0,0,0,0,0,0,0,0,0,0,0,0,0]} 1. e4 {[%emt 0:00:00]} e6 {[%emt 0:10:01]} 2. d4 {[%emt 0:00:03]} d5 {[%emt 0:00:05]} 3. Nd2 {[%emt 0:00:04]} Nf6 {[%emt 0:01:00]} 4. Bd3 {[%emt 0:00:14]} c5 {[%emt 0:01:42]} 5. Ngf3 {[%emt 0:00:16]} Nc6 {[%emt 0:00:25]} ({Better is} 5... c4 $15 6. Be2 dxe4) 6. e5 {[%emt 0:00:58]} Nd7 {[%emt 0:00:21]} 7. c3 {[%emt 0:00:05]} cxd4 {[%emt 0:03:07]} 8. cxd4 {[%emt 0:00:16]} Nb4 {[%emt 0:00:24] C06: French Tarrasch: 3...Nf6 4 e5 Nfd7 5 Bd3 main lines.} 9. Bb1 {[%emt 0:00:41]} b5 {[%emt 0:03:53]} 10. O-O {[%emt 0:01:23]} Be7 {[%emt 0:03:30] [#]} 11. Nb3 $146 {[%emt 0:00:17]} ({Predecessor:} 11. Re1 a5 12. Nf1 Ba6 13. Ng3 h5 14. h3 Rc8 15. a3 Nc6 16. Bd3 a4 17. Qe2 {½-½ (42) Bulgarini Torres,M (1958)-Rahde,F (2011) LSS email 2012}) 11... Bb7 {[%emt 0:02:55]} 12. Be3 {[%emt 0:01:32]} (12. a3 $5 {[%cal Ra3b4]} Nc6 13. Be3 $14) 12... Nb6 {[%emt 0:02:12]} 13. Na5 {[%emt 0:01:37]} Qd7 {[%emt 0:00:45]} 14. Nxb7 {[%emt 0:00:44]} Qxb7 {[%emt 0:00:33]} 15. a3 {[%emt 0:00:16]} Nc6 {[%emt 0:01:04] [#]} 16. Bd3 {[%emt 0:01:32]} (16. b3 $1 $16) 16... a6 {[%emt 0:06:29]} 17. b3 {[%emt 0:02:10]} f6 {[%emt 0:02:29] [#]} (17... Nd7 $14) 18. exf6 $1 {[%emt 0:00:33]} gxf6 {[%emt 0:00:59]} (18... Bxf6 $142 19. a4 bxa4) 19. Re1 {[%emt 0:00:33]} Bd6 {[%emt 0:05:42]} 20. Bd2 {[%emt 0:01:01]} Qf7 {[%emt 0:02:31]} 21. a4 {[%emt 0:01:38]} bxa4 {[%emt 0:01:20]} 22. bxa4 {[%emt 0:00:11]} O-O {[%emt 0:03:26]} 23. Qe2 {[%emt 0:05:03]} e5 {[%emt 0:01:48]} (23... Nb4 $16) 24. dxe5 {[%emt 0:02:16]} Nxe5 {[%emt 0:00:12]} 25. Bf5 {[%emt 0:01:50]} Nbc4 {[%emt 0:01:14]} 26. Nd4 {[%emt 0:01:26]} Rfe8 {[%emt 0:01:40]} 27. Kh1 {[%emt 0:05:15]} Nxd2 {[%emt 0:02:07]} 28. Qxd2 {[%emt 0:00:08]} Kh8 {[%emt 0:00:52]} 29. Qh6 {[%emt 0:05:27]} Bc5 {[%emt 0:01:21]} 30. Rad1 {[%emt 0:00:42]} Bxd4 $1 {[%emt 0:00:28]} 31. Rxd4 {[%emt 0:00:06]} Ng6 $2 {[%emt 0:00:32]} (31... Nd3 $1 $14 32. Re3 Nxf2+ 33. Kg1 Rxe3 34. Qxe3 Ne4) 32. Red1 {[%emt 0:00:50]} Re7 {[%emt 0:02:53]} 33. Bxg6 {[%emt 0:01:01]} ({White should try} 33. g3 $18) 33... Qxg6 {[%emt 0:00:32]} 34. Qxg6 {[%emt 0:00:09]} hxg6 {[%emt 0:00:02]} 35. Rxd5 {[%emt 0:00:08]} Re2 {[%emt 0:00:51]} 36. R5d2 {[%emt 0:00:21]} Rae8 {[%emt 0:00:28]} 37. g3 {[%emt 0:00:16]} Rxd2 {[%emt 0:00:22]} 38. Rxd2 {[%emt 0:00:06]} Re6 {[%emt 0:00:09]} 39. Rb2 {[%emt 0:00:36]} Kg7 {[%emt 0:00:32]} 40. Rb7+ {[%emt 0:00:12]} Kh6 {[%emt 0:00:58]} 41. a5 {[%emt 0:30:07]} Re5 {[%emt 0:30:37]} 42. Rb6 {[%emt 0:00:07]} Rxa5 {[%emt 0:00:10]} 43. Rxf6 {[%emt 0:00:06]} Rf5 {[%emt 0:00:42]} 44. Rxa6 {[%emt 0:00:23]} Rxf2 {[%emt 0:00:15]} 45. Kg1 {[%emt 0:00:01]} Rc2 {[%emt 0:00:28]} 46. h4 {[%emt 0:00:27]} Kh5 {[%emt 0:00:50]} 47. Rf6 {[%emt 0:00:56]} Rb2 {[%emt 0:01:25]} 48. Rf4 {[%emt 0:00:38]} Rc2 {[%emt 0:00:26]} 49. Kf1 {[%emt 0:00:26]} Rb2 {[%emt 0:00:38]} 50. Rf8 {[%emt 0:00:51]} Kg4 {[%emt 0:02:37]} 51. Rg8 {[%emt 0:00:34]} Kxg3 {[%emt 0:02:03]} 52. h5 {[%emt 0:00:06]} g5 {[%emt 0:01:28]} 53. h6 {[%emt 0:01:03]} Rh2 {[%emt 0:00:32]} 54. Rxg5+ {[%emt 0:00:22]} Kf4 {[%emt 0:00:19]} 55. Rg6 {[%emt 0:00:09]} Kf5 {[%emt 0:00:20]} 56. Ra6 {[%emt 0:00:08]} Kg5 $11 {[%emt 0:00:20]} 57. Ra8 {[%emt 0:00:08]} Rxh6 {[%emt 0:00:18]} 1/2-1/2

[Event "56th Rubinstein Memorial D 2020"]
[Site "Polanica Zdroj"]
[Date "2020.08.20"]
[Round "6.8"]
[White "Ursnik, Patryk"]
[Black "Kozlowski, Pawel"]
[Result "0-1"]
[ECO "C00"]
[WhiteElo "1601"]
[BlackElo "1913"]
[Annotator "ChessBase"]
[PlyCount "206"]
[EventDate "2020.08.15"]
[EventType "swiss"]
[EventCountry "POL"]
[SourceTitle "playchess.com"]
[Source "ChessBase"]
[SourceQuality "1"]
[TimeControl "40/5400+30:1800+30"]

1. e4 {[%emt 0:10:48]} e6 {[%emt 0:00:00]} 2. e5 {[%emt 0:00:08]} d5 {[%emt 0:00:17]} 3. exd6 {[%emt 0:00:06]} Bxd6 {[%emt 0:00:20]} 4. d4 {[%emt 0:00:06]} Nf6 {[%emt 0:00:25]} 5. Nf3 {[%emt 0:00:08]} O-O {[%emt 0:00:35]} 6. Bd3 {[%emt 0:00:06]} b6 {[%emt 0:06:19]} 7. O-O {[%emt 0:00:18]} Bb7 {[%emt 0:03:45]} 8. Bg5 {[%emt 0:00:25]} Nbd7 {[%emt 0:06:48]} 9. Nbd2 {[%emt 0:00:32]} c5 {[%emt 0:04:07]} 10. c3 {[%emt 0:00:05]} Qc7 {[%emt 0:04:57]} 11. dxc5 {[%emt 0:06:58]} Nxc5 {[%emt 0:09:23]} 12. Bxf6 {[%emt 0:05:58]} Nxd3 {[%emt 0:00:11]} 13. Qc2 {[%emt 0:01:04]} Ba6 {[%emt 0:00:39]} 14. Qa4 {[%emt 0:08:13]} Nb4 {[%emt 0:09:52]} 15. Rfc1 {[%emt 0:15:22]} b5 {[%emt 0:01:17]} 16. Qa3 {[%emt 0:00:08]} Nd3 {[%emt 0:02:28]} 17. Qxa6 {[%emt 0:00:59]} Nxc1 {[%emt 0:00:40]} 18. Bxg7 {[%emt 0:10:25]} Ne2+ {[%emt 0:01:25]} 19. Kf1 {[%emt 0:03:16]} Kxg7 {[%emt 0:00:22]} 20. Kxe2 {[%emt 0:00:06]} Rab8 {[%emt 0:13:40]} 21. Nd4 {[%emt 0:04:01]} Rb6 {[%emt 0:06:40]} 22. Qa5 {[%emt 0:00:14]} Bc5 {[%emt 0:02:45]} 23. N4f3 {[%emt 0:02:44]} Qc6 {[%emt 0:06:55]} 24. c4 {[%emt 0:01:09]} bxc4 {[%emt 0:03:32]} 25. Qc3+ {[%emt 0:00:56]} f6 {[%emt 0:00:14]} 26. Nxc4 {[%emt 0:03:50]} Qe4+ {[%emt 0:03:02]} 27. Kf1 {[%emt 0:01:09]} Bb4 {[%emt 0:04:51]} 28. Qd4 {[%emt 0:02:34]} Qxd4 {[%emt 0:00:52]} 29. Nxd4 {[%emt 0:00:05]} Ra6 {[%emt 0:00:09]} 30. a3 {[%emt 0:00:35]} Bc5 {[%emt 0:00:24]} 31. Rd1 {[%emt 0:01:23]} Bxd4 {[%emt 0:01:28]} 32. Rxd4 {[%emt 0:00:07]} e5 {[%emt 0:02:00]} 33. Rh4 {[%emt 0:05:40]} Rc6 {[%emt 0:02:29]} 34. Ke2 {[%emt 0:00:43]} Kg6 {[%emt 0:01:03]} 35. Kd3 {[%emt 0:01:07]} Rd8+ {[%emt 0:00:50]} 36. Kc3 {[%emt 0:00:07]} h5 {[%emt 0:00:27]} 37. Re4 {[%emt 0:00:50]} Kf5 {[%emt 0:00:41]} 38. f3 {[%emt 0:00:51]} Rd1 {[%emt 0:00:46]} 39. b3 {[%emt 0:01:22]} Rg1 {[%emt 0:01:17]} 40. Kb4 {[%emt 0:00:11]} Ke6 {[%emt 0:01:11]} 41. Re2 {[%emt 0:31:21]} Kf5 {[%emt 0:30:48]} 42. Kb5 {[%emt 0:00:32]} Rc7 {[%emt 0:00:28]} 43. Ka4 {[%emt 0:02:14]} h4 {[%emt 0:00:27]} 44. Nd6+ {[%emt 0:03:29]} Ke6 {[%emt 0:00:16]} 45. Nb5 {[%emt 0:00:11]} Rg7 {[%emt 0:00:32]} 46. Re4 {[%emt 0:01:31]} R1xg2 {[%emt 0:00:14]} 47. Rxh4 {[%emt 0:00:11]} Rf2 {[%emt 0:00:14]} 48. Rh3 {[%emt 0:01:28]} Rd7 {[%emt 0:00:36]} 49. Nc3 {[%emt 0:02:33]} Rd4+ {[%emt 0:01:04]} 50. b4 {[%emt 0:01:59]} Rf4 {[%emt 0:00:39]} 51. Rh7 {[%emt 0:01:33]} R4xf3 {[%emt 0:00:15]} 52. Nb5 {[%emt 0:00:23]} a6 {[%emt 0:00:14]} 53. Nc7+ {[%emt 0:00:11]} Kf5 {[%emt 0:00:07]} 54. Nxa6 {[%emt 0:00:41]} Ra2 {[%emt 0:00:06]} 55. b5 {[%emt 0:00:41]} Rfxa3+ {[%emt 0:01:38]} 56. Kb4 {[%emt 0:00:18]} Rxa6 {[%emt 0:00:40]} 57. bxa6 {[%emt 0:00:10]} Rxa6 {[%emt 0:00:02]} 58. Kc5 {[%emt 0:00:31]} Ra2 {[%emt 0:00:46]} 59. Kd6 {[%emt 0:02:08]} e4 {[%emt 0:00:34]} 60. Rh3 {[%emt 0:00:49]} Kf4 {[%emt 0:00:40]} 61. Rh4+ {[%emt 0:00:31]} Kf3 {[%emt 0:00:16]} 62. Ke6 {[%emt 0:00:55]} Ra6+ {[%emt 0:00:41]} 63. Kf5 {[%emt 0:00:24]} e3 {[%emt 0:00:09]} 64. Rf4+ {[%emt 0:00:14]} Kg2 {[%emt 0:00:17]} 65. h4 {[%emt 0:00:30]} Ra1 {[%emt 0:01:03]} 66. Rg4+ {[%emt 0:01:54]} Kf3 {[%emt 0:00:27]} 67. Rf4+ {[%emt 0:00:11]} Kg2 {[%emt 0:00:26]} 68. Rg4+ {[%emt 0:00:04]} Kf3 {[%emt 0:00:33]} 69. Rf4+ {[%emt 0:00:05]} Ke2 {[%emt 0:00:12]} 70. h5 {[%emt 0:01:40]} Rh1 {[%emt 0:00:19]} 71. Kg6 {[%emt 0:00:37]} Rf1 {[%emt 0:01:02]} 72. Rxf1 {[%emt 0:00:35]} Kxf1 {[%emt 0:00:06]} 73. h6 {[%emt 0:00:01]} e2 {[%emt 0:00:01]} 74. h7 {[%emt 0:00:06]} e1=Q {[%emt 0:00:17]} 75. h8=Q {[%emt 0:00:05]} Qg3+ {[%emt 0:00:51]} 76. Kf7 {[%emt 0:00:32]} Qc7+ {[%emt 0:00:22]} 77. Kg6 {[%emt 0:00:15]} Qc2+ {[%emt 0:00:10]} 78. Kf7 {[%emt 0:00:16]} Qc4+ {[%emt 0:00:05]} 79. Kg6 {[%emt 0:00:12]} Qg4+ {[%emt 0:00:23]} 80. Kf7 {[%emt 0:00:18]} f5 {[%emt 0:00:44]} 81. Qa1+ {[%emt 0:00:26]} Kf2 {[%emt 0:00:25]} 82. Qa7+ {[%emt 0:00:44]} Kg2 {[%emt 0:00:39]} 83. Qa8+ {[%emt 0:01:16]} Kg3 {[%emt 0:00:16]} 84. Qa3+ {[%emt 0:01:01]} Qf3 {[%emt 0:00:21]} 85. Qd6+ {[%emt 0:00:28]} f4 {[%emt 0:00:16]} 86. Kf6 {[%emt 0:00:51]} Qh5 {[%emt 0:00:46]} 87. Qb8 {[%emt 0:00:39]} Qd5 {[%emt 0:01:17]} 88. Qc7 {[%emt 0:00:29]} Qh5 {[%emt 0:01:30]} 89. Qb8 {[%emt 0:00:26]} Qc5 {[%emt 0:00:17]} 90. Qg8+ {[%emt 0:00:25]} Kf2 {[%emt 0:00:14]} 91. Qa2+ {[%emt 0:00:13]} Ke3 {[%emt 0:00:48]} 92. Qe6+ {[%emt 0:00:37]} Kd3 {[%emt 0:00:28]} 93. Qh3+ {[%emt 0:00:32]} Qe3 {[%emt 0:00:10]} 94. Qf1+ {[%emt 0:00:35]} Ke4 {[%emt 0:00:05]} 95. Qb1+ {[%emt 0:01:02]} Kd4 {[%emt 0:00:33]} 96. Qb6+ {[%emt 0:00:29]} Kd3 {[%emt 0:00:51]} 97. Qb5+ {[%emt 0:00:33]} Kd2 {[%emt 0:00:37]} 98. Qb2+ {[%emt 0:00:11]} Ke1 {[%emt 0:00:23]} 99. Qb1+ {[%emt 0:00:10]} Kf2 {[%emt 0:00:16]} 100. Qc2+ {[%emt 0:00:37]} Qe2 {[%emt 0:00:52]} 101. Qc5+ {[%emt 0:00:14]} Kg3 {[%emt 0:00:29]} 102. Qc7 {[%emt 0:00:56]} Qg4 {[%emt 0:00:36]} 103. Qb8 {[%emt 0:00:53]} Kh3 0-1

[Event "56th Rubinstein Memorial D 2020"]
[Site "Polanica Zdroj"]
[Date "2020.08.20"]
[Round "6.9"]
[White "Kaczanowski, Pawel"]
[Black "Janicki, Rafal"]
[Result "1/2-1/2"]
[ECO "B32"]
[WhiteElo "1655"]
[BlackElo "1851"]
[Annotator "NA RC"]
[PlyCount "139"]
[EventDate "2020.08.15"]
[EventType "swiss"]
[EventCountry "POL"]
[SourceTitle "playchess.com"]
[Source "ChessBase"]
[SourceQuality "1"]
[TimeControl "40/5400+30:1800+30"]

1. e4 {[%emt 0:00:00]} c5 {[%emt 0:00:00]} 2. Nf3 {[%emt 0:00:00]} Nc6 {[%emt 0:00:00]} 3. d4 {[%emt 0:00:00]} cxd4 {[%emt 0:00:00]} 4. Nxd4 {[%emt 0:00:00]} e5 {[%emt 0:00:00]} 5. Nb5 {[%emt 0:00:05]} d6 {[%emt 0:00:01]} 6. N1c3 {[%emt 0:00:31]} a6 {[%emt 0:00:26]} 7. Na3 {[%emt 0:00:10]} Be7 {[%emt 0:00:53]} 8. Be3 {[%emt 0:06:31] B32: Sicilian: Löwenthal and Kalashnikov Variations.} Nf6 {[%emt 0:04:15]} 9. Nc4 {[%emt 0:03:21]} b5 {[%emt 0:03:18]} 10. Bb6 {[%emt 0:10:18]} (10. Nb6 $5 {[%cal Rb6a8]} Rb8 11. Nxc8 Qxc8 12. Bd3 $14) 10... Qd7 {[%emt 0:01:35]} 11. Ne3 {[%emt 0:01:09]} O-O {[%emt 0:07:18] [#]} 12. Bd3 $146 {[%emt 0:03:04]} ({Predecessor:} 12. Ned5 Nxd5 13. Nxd5 Bb7 14. Be2 Nd4 15. Bxd4 Bxd5 16. Bxe5 Bxe4 17. Bxg7 Kxg7 18. Qd4+ {1-0 (41) Pastuszko,K (2029)-Kozlowski,M (1812) Krakow 2018}) 12... Qb7 {[%emt 0:10:07]} 13. Ncd5 {[%emt 0:06:29]} (13. Ned5 $11 {keeps the balance.}) 13... Be6 {[%emt 0:06:43]} 14. Qf3 {[%emt 0:14:28]} Bxd5 {[%emt 0:16:24]} 15. exd5 {[%emt 0:03:39]} e4 {[%emt 0:08:29]} 16. dxc6 {[%emt 0:03:06]} Qxc6 {[%emt 0:02:24]} 17. Nf5 {[%emt 0:06:45]} Rfe8 {[%emt 0:02:13]} 18. Qg3 {[%emt 0:10:47]} (18. Bxe4 $1 $11 Nxe4 19. Bd4) 18... Nh5 {[%emt 0:03:23]} 19. Qg4 {[%emt 0:01:45]} ({Not} 19. Nxe7+ $2 Rxe7 20. Qe3 exd3 $19 {[%mdl 64] Discovered Attack}) 19... exd3 {[%emt 0:02:46]} 20. Be3 {[%emt 0:11:42]} Bf6 {[%emt 0:10:35]} 21. Nh6+ {[%emt 0:11:47]} Kf8 {[%emt 0:03:35]} 22. Qxh5 {[%emt 0:00:50]} gxh6 {[%emt 0:03:05]} 23. O-O {[%emt 0:00:10]} Bxb2 {[%emt 0:04:52]} 24. Bxh6+ {[%emt 0:00:09]} Bg7 {[%emt 0:01:51]} 25. Bxg7+ {[%emt 0:01:16]} Kxg7 {[%emt 0:00:02]} 26. cxd3 {[%emt 0:00:04]} Re6 {[%emt 0:01:06]} 27. Rac1 {[%emt 0:00:23]} Qb7 {[%emt 0:00:58]} 28. d4 {[%emt 0:00:38]} Rae8 {[%emt 0:01:50]} 29. Rc3 {[%emt 0:01:24]} Qe4 {[%emt 0:01:11]} 30. d5 {[%emt 0:02:01]} Rg6 {[%emt 0:00:46]} 31. g3 {[%emt 0:01:22]} Re5 {[%emt 0:01:45]} 32. Qd1 {[%emt 0:01:03]} Rxd5 $15 {[%emt 0:01:08]} 33. Qa1 {[%emt 0:00:03]} Qd4 {[%emt 0:00:54]} 34. Ra3 $1 {[%emt 0:00:54]} Qxa1 {[%emt 0:01:57]} 35. Rxa1 {[%emt 0:00:03]} Rg4 {[%emt 0:00:29]} 36. Rxa6 {[%emt 0:00:16]} Rb4 {[%emt 0:00:11]} 37. a4 {[%emt 0:00:59]} bxa4 {[%emt 0:01:00]} 38. R6xa4 {[%emt 0:00:10]} Rb2 {[%emt 0:00:27]} 39. R4a2 {[%emt 0:00:12]} Rbb5 {[%emt 0:00:30]} 40. Rc1 {[%emt 0:00:26]} Rbc5 {[%emt 0:00:50]} 41. Rb1 {[%emt 0:30:11]} Rb5 {[%emt 0:30:26]} 42. Rc1 {[%emt 0:00:04]} Rdc5 {[%emt 0:00:13]} 43. Re1 {[%emt 0:00:14]} Kf6 {[%emt 0:00:14]} 44. Ra7 {[%emt 0:00:06]} Re5 {[%emt 0:00:11]} 45. Rc1 {[%emt 0:00:06]} Re7 {[%emt 0:00:15]} 46. Ra6 {[%emt 0:00:53]} Ke6 {[%emt 0:00:33]} 47. Kg2 {[%emt 0:02:07]} Re5 {[%emt 0:00:53]} 48. f4 {[%emt 0:01:09]} Re2+ {[%emt 0:00:33]} 49. Kf3 {[%emt 0:00:05]} Rd2 {[%emt 0:00:34]} 50. Re1+ {[%emt 0:00:48]} Kf6 {[%emt 0:00:10]} 51. Rxe7 {[%emt 0:00:04]} Kxe7 {[%emt 0:00:05]} 52. Ra7+ {[%emt 0:00:25]} Ke6 {[%emt 0:00:39]} 53. h3 {[%emt 0:00:38]} Rd3+ {[%emt 0:00:22]} 54. Kf2 {[%emt 0:00:09]} h5 {[%emt 0:01:38]} 55. h4 {[%emt 0:01:14]} Rd2+ {[%emt 0:00:12]} 56. Ke3 {[%emt 0:00:13]} Rg2 {[%emt 0:00:12]} 57. Kf3 {[%emt 0:00:04]} Rb2 {[%emt 0:00:22]} 58. Ra5 {[%emt 0:01:18]} Rb3+ {[%emt 0:00:18]} 59. Kf2 {[%emt 0:00:53]} d5 {[%emt 0:00:44]} 60. Ra6+ {[%emt 0:00:13]} Kf5 {[%emt 0:00:36]} 61. Rd6 {[%emt 0:00:32]} Ke4 {[%emt 0:00:23]} 62. Rh6 {[%emt 0:00:39]} Rb2+ {[%emt 0:00:23]} 63. Ke1 {[%emt 0:00:14]} d4 {[%emt 0:00:58]} 64. Rxh5 {[%emt 0:00:23]} d3 {[%emt 0:00:24]} 65. Rh8 {[%emt 0:01:05]} Rb1+ {[%emt 0:01:02]} 66. Kd2 {[%emt 0:00:07]} Rb2+ {[%emt 0:00:07]} 67. Kd1 {[%emt 0:00:13]} Rb1+ {[%emt 0:00:18]} 68. Kd2 {[%emt 0:00:05]} Rb2+ {[%emt 0:00:08]} 69. Kd1 {[%emt 0:00:04]} Rb1+ {[%emt 0:00:05]} 70. Kd2 {[%emt 0:00:03]} 1/2-1/2

[Event "56th Rubinstein Memorial D 2020"]
[Site "Polanica Zdroj"]
[Date "2020.08.20"]
[Round "6.10"]
[White "Sypien, Natan"]
[Black "Wolska, Marta"]
[Result "1/2-1/2"]
[ECO "A45"]
[WhiteElo "1794"]
[BlackElo "1551"]
[Annotator "NA RC"]
[PlyCount "100"]
[EventDate "2020.08.15"]
[EventType "swiss"]
[EventCountry "POL"]
[SourceTitle "playchess.com"]
[Source "ChessBase"]
[SourceQuality "1"]
[TimeControl "40/5400+30:1800+30"]

1. d4 {[%emt 0:01:18]} Nf6 {[%emt 0:00:00]} 2. Bg5 {[%emt 0:00:03]} Ne4 {[%emt 0:00:12]} 3. Bf4 {[%emt 0:00:06]} d5 {[%emt 0:02:15]} 4. e3 {[%emt 0:00:25]} e6 {[%emt 0:07:24]} 5. Bd3 {[%emt 0:00:38]} Nf6 {[%emt 0:00:43]} 6. Nf3 {[%emt 0:01:59]} c5 {[%emt 0:00:27]} 7. O-O {[%emt 0:05:12]} cxd4 {[%emt 0:06:31]} 8. exd4 {[%emt 0:00:25]} Bd6 {[%emt 0:00:04]} 9. Bg5 {[%emt 0:08:47]} O-O {[%emt 0:00:23]} 10. c4 {[%emt 0:00:15]} dxc4 {[%emt 0:05:15]} 11. Bxc4 {[%emt 0:00:04]} Nbd7 {[%emt 0:00:46]} 12. Nc3 {[%emt 0:03:19]} a6 {[%emt 0:02:49]} 13. a4 {[%emt 0:06:57]} h6 {[%emt 0:04:36]} 14. Bh4 {[%emt 0:00:13]} Be7 {[%emt 0:00:45]} 15. Qe2 {[%emt 0:13:09]} Nb6 {[%emt 0:02:41]} 16. Bb3 {[%emt 0:08:49]} Nbd5 {[%emt 0:05:10]} 17. Nxd5 {[%emt 0:08:42]} Nxd5 {[%emt 0:00:27]} 18. Bxd5 {[%emt 0:00:25]} Bxh4 {[%emt 0:00:34]} 19. Bb3 {[%emt 0:00:33]} Bf6 {[%emt 0:01:12]} 20. Qe4 {[%emt 0:01:34]} Qb6 {[%emt 0:02:33]} 21. Bc2 {[%emt 0:00:07]} g6 {[%emt 0:00:09]} 22. Ne5 {[%emt 0:01:38]} Bxe5 {[%emt 0:06:19]} 23. dxe5 {[%emt 0:00:06]} Bd7 {[%emt 0:00:30]} 24. a5 {[%emt 0:02:30]} Qc7 {[%emt 0:01:46]} 25. Ra3 {[%emt 0:06:10]} Rac8 {[%emt 0:02:34]} 26. Rc3 {[%emt 0:04:43]} Bc6 {[%emt 0:02:21]} 27. Qf4 {[%emt 0:01:47]} Kg7 {[%emt 0:06:03]} 28. Rh3 {[%emt 0:09:49]} Rh8 {[%emt 0:00:12]} 29. Qf6+ {[%emt 0:00:04]} Kh7 {[%emt 0:04:13]} 30. Rg3 {[%emt 0:01:46]} Rhg8 {[%emt 0:01:49]} 31. Bb1 {[%emt 0:00:15]} Rg7 {[%emt 0:02:00]} 32. b4 {[%emt 0:03:42]} Bb5 {[%emt 0:01:11]} 33. Re1 {[%emt 0:02:46]} Qc1 {[%emt 0:04:20]} 34. Rge3 {[%emt 0:00:35]} Qb2 {[%emt 0:00:09]} 35. Qf4 {[%emt 0:03:06]} Rc4 {[%emt 0:01:35]} 36. Re4 {[%emt 0:01:12]} Qxb4 {[%emt 0:00:53]} 37. Rd1 {[%emt 0:02:37]} Rxe4 {[%emt 0:04:14]} 38. Qxe4 {[%emt 0:00:09]} Qxa5 {[%emt 0:01:38]} 39. Qxb7 {[%emt 0:00:05]} Ba4 {[%emt 0:00:15]} 40. Rc1 {[%emt 0:00:49]} Bb5 {[%emt 0:00:56]} 41. Qc8 {[%emt 0:31:37]} Rg8 {[%emt 0:31:59]} 42. Qc5 {[%emt 0:00:08]} Qd2 {[%emt 0:00:47]} 43. h4 {[%emt 0:00:21]} h5 {[%emt 0:00:56]} 44. Qc3 {[%emt 0:02:01]} Qd5 {[%emt 0:04:14]} 45. Qc7 {[%emt 0:00:43]} Rg7 {[%emt 0:00:07]} 46. Qc5 {[%emt 0:00:38]} Qd8 {[%emt 0:00:18]} 47. Qb4 {[%emt 0:00:35]} Rg8 {[%emt 0:01:17]} 48. Qf4 {[%emt 0:00:18]} Rg7 {[%emt 0:00:16]} 49. Ba2 {[%emt 0:00:42]} Qa5 {[%emt 0:00:53]} 50. Bc4 {[%emt 0:00:28]} Qa4 {[%emt 0:02:02]} 1/2-1/2